fUSD/lending_fUSD_20250426
["ID","MTS","AMOUNT","RATE_DAILY","PERIOD"]
[359026470,1745659832171,-150.0,0.00019737,2]
[359026471,1745659832182,-150.0,0.0001974,2]
[359026472,1745659832192,-618.09001251,0.00019741,2]
[359026473,1745659832205,-459.06208761,0.00019741,2]
[359026474,1745659832217,-122.84789988,0.00019741,2]
[359026476,1745659832226,-300.0,0.00019741,2]
[359026478,1745659832237,-743.81817772,0.00019742,2]
[359026566,1745659837971,-1740.08024299,0.00019742,2]
[359026567,1745659837981,-97.01875701,0.00019747,2]
[359026568,1745659837994,-52.98124299,0.00019747,2]
[359026569,1745659838005,-150.0,0.00019747,2]
[359026570,1745659838019,-150.0,0.00019753,2]
[359026571,1745659838030,-150.0,0.00019756,2]
[359026572,1745659838043,-150.0,0.00019759,2]
[359026573,1745659838054,-150.0,0.0001976,2]
[359026574,1745659838064,-150.0,0.00019762,2]
[359026575,1745659838075,-129.47866701,0.00019762,2]
[359026576,1745659838093,-20.52133299,0.00019762,2]
[359026577,1745659838103,-150.0,0.00019763,2]
[359026578,1745659838112,-150.0,0.00019763,2]
[359026579,1745659838123,-150.0,0.00019763,2]
[359026580,1745659838133,-1340.47866696,0.00019765,2]
[359026581,1745659838145,-752.55,0.00019765,2]
[359026582,1745659838158,-390.86975375,0.00019765,2]
[359026583,1745659838167,-150.0,0.00019766,2]
[359026584,1745659838176,-150.0,0.00019769,2]
[359026585,1745659838186,-500.0,0.00019773,2]
[359026586,1745659838196,-500.0,0.00019773,2]
[359026587,1745659838206,-150.0,0.00019773,2]
[359026588,1745659838215,-150.0,0.00019773,2]
[359026590,1745659838225,-150.0,0.00019776,2]
[359026591,1745659838235,-150.0,0.00019781,2]
[359026592,1745659838245,-150.0,0.00019783,2]
[359026593,1745659838255,-150.0,0.00019787,2]
[359026594,1745659838264,-2483.89842071,0.00019787,2]
[359026595,1745659838275,-150.0,0.00019788,2]
[359026597,1745659838284,-150.0,0.00019789,2]
[359026599,1745659838293,-150.0,0.00019792,2]
[359026601,1745659838303,-150.0,0.00019794,2]
[359026603,1745659838313,-500.83206328,0.00019797,2]
[359026605,1745659838322,-500.0,0.00019797,2]
[359026607,1745659838332,-1269.14,0.00019797,2]
[359026609,1745659838341,-500.0,0.00019797,2]
[359026611,1745659838351,-865.84,0.00019797,2]
[359026613,1745659838360,-500.0,0.00019797,2]
[359026615,1745659838369,-500.0,0.00019797,2]
[359026617,1745659838379,-500.0,0.00019797,2]
[359026619,1745659838388,-613.48,0.00019797,2]
[359026621,1745659838398,-500.0,0.00019797,2]
[359026622,1745659838407,-500.0,0.00019797,2]
[359026624,1745659838417,-500.0,0.00019797,2]
[359026626,1745659838427,-500.0,0.00019797,2]
[359026628,1745659838436,-500.0,0.00019797,2]
[359026630,1745659838446,-522.28,0.00019797,2]
[359026631,1745659838456,-1893.31,0.00019797,2]
[359026634,1745659838466,-989.61,0.00019797,2]
[359026635,1745659838476,-767.33,0.00019797,2]
[359026637,1745659838485,-702.95,0.00019797,2]
[359026639,1745659838495,-620.9,0.00019797,2]
[359026641,1745659838504,-917.52,0.00019797,2]
[359026643,1745659838513,-500.0,0.00019797,2]
[359026645,1745659838523,-500.0,0.00019797,2]
[359026647,1745659838533,-655.23,0.00019797,2]
[359026649,1745659838543,-837.24,0.00019797,2]
[359026651,1745659838552,-769.45,0.00019797,2]
[359026653,1745659838561,-877.38,0.00019797,2]
[359026655,1745659838572,-643.87,0.00019797,2]
[359026657,1745659838582,-561.88,0.00019797,2]
[359026659,1745659838591,-500.0,0.00019797,2]
[359026661,1745659838601,-949.08,0.00019797,2]
[359026663,1745659838612,-500.0,0.00019797,2]
[359026665,1745659838621,-1011.66967,0.00019797,2]
[359026667,1745659838630,-592.34,0.00019797,2]
[359026669,1745659838640,-166.423983,0.00019797,2]
[359026671,1745659838651,-513.9,0.00019797,2]
[359026672,1745659838661,-891.32,0.00019797,2]
[359026674,1745659838670,-164.438316,0.00019797,2]
[359026676,1745659838679,-701.63,0.00019797,2]
[359026678,1745659838689,-10540.369441,0.00019797,2]
[359026680,1745659838698,-750.29,0.00019797,2]
[359026682,1745659838708,-500.0,0.00019797,2]
[359026684,1745659838718,-153.5629155,0.00019797,2]
[359026686,1745659838727,-1532.82,0.00019797,2]
[359026688,1745659838737,-500.0,0.00019797,2]
[359026690,1745659838747,-500.0,0.00019797,2]
[359026692,1745659838756,-1002.204799,0.00019797,2]
[359026694,1745659838766,-628.49,0.00019797,2]
[359026696,1745659838775,-500.0,0.00019797,2]
[359026698,1745659838784,-1374.19,0.00019797,2]
[359026700,1745659838794,-701.11,0.00019797,2]
[359026702,1745659838803,-500.0,0.00019797,2]
[359026704,1745659838812,-500.0,0.00019797,2]
[359026706,1745659838822,-500.0,0.00019797,2]
[359026707,1745659838832,-500.0,0.00019797,2]
[359026709,1745659838841,-507.44,0.00019797,2]
[359026711,1745659838851,-500.0,0.00019797,2]
[359026713,1745659838862,-1149.98,0.00019797,2]
[359026715,1745659838872,-500.0,0.00019797,2]
[359026717,1745659838881,-500.0,0.00019797,2]
[359026719,1745659838891,-156.34320295,0.00019797,2]
[359026721,1745659838900,-500.0,0.00019797,2]
[359026723,1745659838910,-1235.01,0.00019797,2]
[359026725,1745659838921,-500.0,0.00019797,2]
[359026727,1745659838930,-781.01,0.00019797,2]
[359026729,1745659838940,-559.3,0.00019797,2]
[359026730,1745659838950,-500.0,0.00019797,2]
[359026732,1745659838959,-500.0,0.00019797,2]
[359026734,1745659838969,-500.0,0.00019797,2]
[359026736,1745659838978,-482.67810974,0.00019797,2]
[359026738,1745659838987,-500.0,0.00019797,2]
[359026740,1745659838998,-500.0,0.00019797,2]
[359026742,1745659839010,-739.32,0.00019797,2]
[359026744,1745659839020,-788.7,0.00019797,2]
[359026746,1745659839030,-500.0,0.00019797,2]
[359026748,1745659839039,-871.75,0.00019797,2]
[359026750,1745659839048,-500.0,0.00019797,2]
[359026752,1745659839058,-500.0,0.00019797,2]
[359026754,1745659839069,-500.0,0.00019797,2]
[359026756,1745659839078,-500.0,0.00019797,2]
[359026757,1745659839089,-500.0,0.00019797,2]
[359026759,1745659839098,-500.0,0.00019797,2]
[359026761,1745659839107,-500.0,0.00019797,2]
[359026763,1745659839117,-500.0,0.00019797,2]
[359026765,1745659839126,-505.52,0.00019797,2]
[359026767,1745659839136,-500.0,0.00019797,2]
[359026769,1745659839145,-500.0,0.00019797,2]
[359026771,1745659839155,-192.99614257,0.00019797,2]
[359026773,1745659839164,-500.0,0.00019797,2]
[359026775,1745659839175,-201.64005365,0.00019797,2]
[359026777,1745659839184,-264.07618732,0.00019797,2]
[359026779,1745659839195,-500.0,0.00019797,2]
[359026781,1745659839205,-500.0,0.00019797,2]
[359026783,1745659839216,-500.0,0.00019797,2]
[359026785,1745659839226,-500.0,0.00019797,2]
[359026787,1745659839235,-500.0,0.00019797,2]
[359026789,1745659839244,-398.09316086,0.00019797,2]
[359026791,1745659839254,-500.0,0.00019797,2]
[359026793,1745659839265,-500.0,0.00019797,2]
[359026795,1745659839274,-557.42,0.00019797,2]
[359026797,1745659839283,-500.0,0.00019797,2]
[359026798,1745659839293,-500.0,0.00019797,2]
[359026801,1745659839303,-861.56,0.00019797,2]
[359026802,1745659839315,-500.0,0.00019797,2]
[359026804,1745659839325,-785.89,0.00019797,2]
[359026806,1745659839334,-500.0,0.00019797,2]
[359026808,1745659839343,-250.0,0.00019797,2]
[359026810,1745659839352,-500.0,0.00019797,2]
[359026812,1745659839361,-852.19,0.00019797,2]
[359026814,1745659839370,-716.08,0.00019797,2]
[359026816,1745659839379,-500.0,0.00019797,2]
[359026818,1745659839390,-636.63,0.00019797,2]
[359026820,1745659839400,-711.89,0.00019797,2]
[359026822,1745659839410,-227.15132585,0.00019797,2]
[359026824,1745659839420,-1232.67,0.00019797,2]
[359026826,1745659839429,-500.0,0.00019797,2]
[359026828,1745659839439,-500.0,0.00019797,2]
[359026830,1745659839448,-500.0,0.00019797,2]
[359026832,1745659839458,-3229.54,0.00019797,2]
[359026834,1745659839468,-511.75,0.00019797,2]
[359026836,1745659839477,-635.87,0.00019797,2]
[359026838,1745659839487,-665.29,0.00019797,2]
[359026840,1745659839496,-500.0,0.00019797,2]
[359026842,1745659839505,-599.99,0.00019797,2]
[359026844,1745659839515,-500.0,0.00019797,2]
[359026846,1745659839525,-599.07,0.00019797,2]
[359026848,1745659839534,-500.0,0.00019797,2]
[359026850,1745659839543,-852.0,0.00019797,2]
[359026851,1745659839553,-500.0,0.00019797,2]
[359026853,1745659839562,-977.55,0.00019797,2]
[359026855,1745659839571,-725.32,0.00019797,2]
[359026857,1745659839581,-500.0,0.00019797,2]
[359026859,1745659839590,-521.79,0.00019797,2]
[359026861,1745659839599,-674.32,0.00019797,2]
[359026863,1745659839609,-500.0,0.00019797,2]
[359026865,1745659839618,-500.0,0.00019797,2]
[359026867,1745659839627,-779.69,0.00019797,2]
[359026869,1745659839637,-635.45,0.00019797,2]
[359026870,1745659839646,-776.91,0.00019797,2]
[359026872,1745659839655,-550.69,0.00019797,2]
[359026874,1745659839665,-537.11,0.00019797,2]
[359026876,1745659839674,-799.98,0.00019797,2]
[359026878,1745659839683,-500.0,0.00019797,2]
[359026880,1745659839692,-616.28,0.00019797,2]
[359026882,1745659839702,-500.0,0.00019797,2]
[359026884,1745659839711,-500.0,0.00019797,2]
[359026886,1745659839721,-936.03,0.00019797,2]
[359026890,1745659839736,-500.0,0.00019797,2]
[359026892,1745659839751,-1096.29,0.00019797,2]
[359026895,1745659839768,-500.0,0.00019797,2]
[359026897,1745659839781,-500.0,0.00019797,2]
[359026899,1745659839793,-500.0,0.00019797,2]
[359026902,1745659839807,-500.0,0.00019797,2]
[359026904,1745659839821,-500.0,0.00019797,2]
[359026907,1745659839835,-287896.22,0.00019797,2]
[359026909,1745659839850,-900.83,0.00019797,2]
[359026911,1745659839864,-828.23,0.00019797,2]
[359026914,1745659839877,-1049.8,0.00019797,2]
[359026916,1745659839890,-534.43,0.00019797,2]
[359026918,1745659839901,-520.45,0.00019797,2]
[359026920,1745659839915,-692.53,0.00019797,2]
[359026923,1745659839928,-500.0,0.00019797,2]
[359026925,1745659839942,-631.3,0.00019797,2]
[359026927,1745659839957,-500.0,0.00019797,2]
[359026930,1745659839971,-500.0,0.00019797,2]
[359026934,1745659839986,-500.0,0.00019797,2]
[359026937,1745659840000,-500.0,0.00019797,2]
[359026940,1745659840015,-938.55,0.00019797,2]
[359026943,1745659840029,-500.0,0.00019797,2]
[359026945,1745659840044,-1409.7,0.00019797,2]
[359026947,1745659840058,-500.0,0.00019797,2]
[359026950,1745659840073,-1234.02,0.00019797,2]
[359026952,1745659840086,-914.34,0.00019797,2]
[359026954,1745659840099,-500.0,0.00019797,2]
[359026957,1745659840113,-558.5,0.00019797,2]
[359026959,1745659840129,-500.0,0.00019797,2]
[359026962,1745659840143,-500.0,0.00019797,2]
[359026964,1745659840156,-500.0,0.00019797,2]
[359026966,1745659840169,-500.0,0.00019797,2]
[359026968,1745659840180,-1012.98,0.00019797,2]
[359026970,1745659840192,-736.01,0.00019797,2]
[359026972,1745659840204,-500.0,0.00019797,2]
[359026975,1745659840221,-624.64,0.00019797,2]
[359026977,1745659840234,-500.0,0.00019797,2]
[359026980,1745659840245,-500.0,0.00019797,2]
[359026982,1745659840256,-644.94,0.00019797,2]
[359026984,1745659840268,-500.0,0.00019797,2]
[359026987,1745659840282,-731.16,0.00019797,2]
[359026989,1745659840298,-1531.81,0.00019797,2]
[359026991,1745659840310,-597.97,0.00019797,2]
[359026993,1745659840322,-589.37,0.00019797,2]
[359026995,1745659840333,-884.18,0.00019797,2]
[359026998,1745659840346,-662.15,0.00019797,2]
[359027000,1745659840358,-1412.12,0.00019797,2]
[359027002,1745659840371,-834.23,0.00019797,2]
[359027005,1745659840383,-500.0,0.00019797,2]
[359027007,1745659840396,-976.95,0.00019797,2]
[359027009,1745659840408,-1399.75,0.00019797,2]
[359027011,1745659840420,-500.0,0.00019797,2]
[359027014,1745659840440,-500.0,0.00019797,2]
[359027017,1745659840452,-554.81,0.00019797,2]
[359027019,1745659840465,-10861.84,0.00019797,2]
[359027021,1745659840477,-500.0,0.00019797,2]
[359027023,1745659840489,-760.86,0.00019797,2]
[359027026,1745659840501,-500.0,0.00019797,2]
[359027028,1745659840512,-500.0,0.00019797,2]
[359027031,1745659840525,-795.88,0.00019797,2]
[359027035,1745659840538,-500.0,0.00019797,2]
[359027037,1745659840551,-500.0,0.00019797,2]
[359027039,1745659840564,-576.52,0.00019797,2]
[359027041,1745659840576,-197.1802369,0.00019797,2]
[359027044,1745659840588,-500.0,0.00019797,2]
[359027046,1745659840600,-676.3,0.00019797,2]
[359027048,1745659840613,-500.0,0.00019797,2]
[359027050,1745659840626,-500.0,0.00019797,2]
[359027053,1745659840639,-938.7,0.00019797,2]
[359027055,1745659840652,-1220.33,0.00019797,2]
[359027057,1745659840663,-500.0,0.00019797,2]
[359027059,1745659840676,-500.0,0.00019797,2]
[359027062,1745659840689,-1239.23,0.00019797,2]
[359027064,1745659840702,-500.0,0.00019797,2]
[359027066,1745659840715,-500.0,0.00019797,2]
[359027068,1745659840727,-1145.85,0.00019797,2]
[359027070,1745659840740,-957.01,0.00019797,2]
[359027073,1745659840752,-500.0,0.00019797,2]
[359027075,1745659840765,-808.66,0.00019797,2]
[359027077,1745659840777,-2184.26,0.00019797,2]
[359027080,1745659840790,-500.0,0.00019797,2]
[359027082,1745659840803,-1210.04,0.00019797,2]
[359027084,1745659840815,-500.0,0.00019797,2]
[359027086,1745659840827,-696.54,0.00019797,2]
[359027087,1745659840839,-1480.35,0.00019797,2]
[359027090,1745659840852,-500.0,0.00019797,2]
[359027092,1745659840864,-500.0,0.00019797,2]
[359027094,1745659840877,-500.0,0.00019797,2]
[359027097,1745659840890,-1008.86,0.00019797,2]
[359027099,1745659840902,-500.0,0.00019797,2]
[359027101,1745659840914,-259.55384003,0.00019797,2]
[359027103,1745659840927,-500.0,0.00019797,2]
[359027106,1745659840939,-513.56333116,0.00019798,2]
[359027108,1745659840953,-500.0,0.00019798,2]
[359027110,1745659840965,-500.0,0.00019798,2]
[359027113,1745659840978,-500.0,0.00019798,2]
[359027115,1745659840992,-500.0,0.00019798,2]
[359027117,1745659841005,-500.0,0.00019798,2]
[359027120,1745659841019,-500.0,0.00019798,2]
[359027122,1745659841032,-500.0,0.00019798,2]
[359027124,1745659841046,-500.0,0.00019798,2]
[359027126,1745659841059,-500.0,0.00019798,2]
[359027129,1745659841072,-500.0,0.00019798,2]
[359027131,1745659841086,-500.0,0.00019798,2]
[359027133,1745659841098,-594.54,0.00019798,2]
[359027135,1745659841111,-775.5,0.00019798,2]
[359027138,1745659841123,-500.0,0.00019798,2]
[359027140,1745659841136,-500.0,0.00019798,2]
[359027142,1745659841148,-500.0,0.00019798,2]
[359027144,1745659841163,-571.65852443,0.00019798,2]
[359027147,1745659841176,-500.0,0.00019798,2]
[359027149,1745659841189,-500.0,0.00019798,2]
[359027151,1745659841203,-500.0,0.00019798,2]
[359027153,1745659841216,-609.45086424,0.00019798,2]
[359027155,1745659841228,-500.0,0.00019798,2]
[359027158,1745659841240,-500.0,0.00019798,2]
[359027159,1745659841253,-263.64,0.00019798,2]
[359027160,1745659841266,-500.0,0.00019798,2]
[359027161,1745659841278,-500.0,0.00019798,2]
[359027162,1745659841291,-500.0,0.00019798,2]
[359027163,1745659841303,-500.0,0.00019798,2]
[359027164,1745659841316,-689.87,0.00019798,2]
[359027165,1745659841329,-500.0,0.00019798,2]
[359027166,1745659841342,-500.0,0.00019798,2]
[359027168,1745659841355,-256.80493524,0.00019798,2]
[359027170,1745659841368,-500.0,0.00019798,2]
[359027173,1745659841380,-500.0,0.00019798,2]
[359027174,1745659841393,-500.0,0.00019798,2]
[359027175,1745659841406,-500.0,0.00019798,2]
[359027176,1745659841427,-500.0,0.00019798,2]
[359027177,1745659841441,-500.0,0.00019798,2]
[359027178,1745659841456,-500.0,0.00019798,2]
[359027179,1745659841469,-500.0,0.00019798,2]
[359027180,1745659841484,-519.28593481,0.00019798,2]
[359027181,1745659841498,-500.0,0.00019798,2]
[359027182,1745659841512,-500.0,0.00019798,2]
[359027183,1745659841526,-500.0,0.00019798,2]
[359027184,1745659841541,-763.1,0.00019798,2]
[359027185,1745659841556,-500.0,0.00019798,2]
[359027186,1745659841571,-500.0,0.00019798,2]
[359027187,1745659841587,-1284.16,0.00019798,2]
[359027190,1745659841600,-500.0,0.00019798,2]
[359027192,1745659841615,-171.97957722,0.00019798,2]
[359027194,1745659841629,-500.0,0.00019798,2]
[359027197,1745659841643,-414.19996969,0.00019798,2]
[359027199,1745659841658,-500.0,0.00019798,2]
[359027202,1745659841671,-500.0,0.00019798,2]
[359027204,1745659841684,-500.0,0.00019798,2]
[359027206,1745659841697,-500.0,0.00019798,2]
[359027209,1745659841711,-500.0,0.00019798,2]
[359027211,1745659841724,-623.63,0.00019798,2]
[359027213,1745659841738,-500.0,0.00019798,2]
[359027216,1745659841751,-530.66,0.00019798,2]
[359027218,1745659841765,-500.0,0.00019798,2]
[359027220,1745659841778,-500.0,0.00019798,2]
[359027223,1745659841791,-500.0,0.00019798,2]
[359027225,1745659841805,-500.0,0.00019798,2]
[359027228,1745659841825,-500.0,0.00019798,2]
[359027230,1745659841839,-500.0,0.00019798,2]
[359027233,1745659841853,-500.0,0.00019798,2]
[359027235,1745659841867,-500.0,0.00019798,2]
[359027237,1745659841881,-500.0,0.00019798,2]
[359027240,1745659841895,-500.0,0.00019798,2]
[359027242,1745659841908,-500.0,0.00019798,2]
[359027244,1745659841921,-500.0,0.00019798,2]
[359027247,1745659841935,-500.0,0.00019798,2]
[359027249,1745659841949,-500.0,0.00019798,2]
[359027251,1745659841963,-500.0,0.00019798,2]
[359027254,1745659841977,-500.0,0.00019798,2]
[359027256,1745659841991,-500.0,0.00019798,2]
[359027259,1745659842005,-500.0,0.00019798,2]
[359027261,1745659842021,-500.0,0.00019798,2]
[359027263,1745659842034,-936.57,0.00019798,2]
[359027265,1745659842048,-500.0,0.00019798,2]
[359027268,1745659842061,-500.0,0.00019798,2]
[359027270,1745659842073,-173.92571822,0.00019798,2]
[359027272,1745659842087,-500.0,0.00019798,2]
[359027274,1745659842100,-500.0,0.00019798,2]
[359027277,1745659842113,-500.0,0.00019798,2]
[359027279,1745659842126,-500.0,0.00019798,2]
[359027281,1745659842139,-500.0,0.00019798,2]
[359027284,1745659842153,-500.0,0.00019798,2]
[359027286,1745659842166,-539.23,0.00019798,2]
[359027288,1745659842179,-791.64,0.00019798,2]
[359027290,1745659842192,-500.0,0.00019798,2]
[359027293,1745659842206,-500.0,0.00019798,2]
[359027295,1745659842219,-1143.8,0.00019798,2]
[359027297,1745659842232,-950.89,0.00019798,2]
[359027299,1745659842244,-500.0,0.00019798,2]
[359027302,1745659842256,-353.7093691,0.00019798,2]
[359027304,1745659842268,-500.0,0.00019798,2]
[359027306,1745659842281,-500.0,0.00019798,2]
[359027308,1745659842293,-724.78,0.00019798,2]
[359027310,1745659842305,-918.01,0.00019798,2]
[359027313,1745659842317,-500.0,0.00019798,2]
[359027315,1745659842329,-875.74,0.00019798,2]
[359027317,1745659842342,-347.59625017,0.00019798,2]
[359027320,1745659842356,-500.0,0.00019798,2]
[359027322,1745659842369,-1279.71,0.00019798,2]
[359027324,1745659842383,-929.16,0.00019798,2]
[359027327,1745659842395,-500.0,0.00019798,2]
[359027329,1745659842408,-500.0,0.00019798,2]
[359027331,1745659842420,-500.0,0.00019798,2]
[359027334,1745659842432,-613.54,0.00019798,2]
[359027336,1745659842445,-642.67,0.00019798,2]
[359027338,1745659842457,-529.74,0.00019798,2]
[359027341,1745659842471,-828.92,0.00019798,2]
[359027343,1745659842483,-500.0,0.00019798,2]
[359027345,1745659842497,-814.44,0.00019798,2]
[359027347,1745659842510,-785.83,0.00019798,2]
[359027350,1745659842523,-500.0,0.00019798,2]
[359027352,1745659842536,-845.62,0.00019798,2]
[359027354,1745659842548,-836.28,0.00019798,2]
[359027356,1745659842561,-500.0,0.00019798,2]
[359027358,1745659842574,-500.0,0.00019798,2]
[359027361,1745659842585,-500.0,0.00019798,2]
[359027363,1745659842597,-150.0,0.00019798,2]
[359027365,1745659842607,-503.35852567,0.00019798,2]
[359027367,1745659842618,-500.0,0.00019798,2]
[359027369,1745659842630,-1000.0,0.00019798,2]
[359027372,1745659842642,-500.0,0.00019798,2]
[359027374,1745659842653,-500.0,0.00019798,2]
[359027376,1745659842663,-783.06,0.00019798,2]
[359027378,1745659842674,-1076.24,0.00019798,2]
[359027380,1745659842683,-500.0,0.00019798,2]
[359027382,1745659842694,-633.36,0.00019798,2]
[359027384,1745659842704,-892.36,0.00019798,2]
[359027387,1745659842716,-500.0,0.00019798,2]
[359027389,1745659842727,-500.0,0.00019798,2]
[359027391,1745659842737,-500.0,0.00019798,2]
[359027393,1745659842749,-500.0,0.00019798,2]
[359027396,1745659842761,-500.0,0.00019798,2]
[359027398,1745659842775,-500.0,0.00019798,2]
[359027400,1745659842787,-931.57,0.00019798,2]
[359027402,1745659842799,-594.57193172,0.00019798,2]
[359027405,1745659842811,-500.0,0.00019798,2]
[359027407,1745659842823,-998.02,0.00019798,2]
[359027409,1745659842835,-500.0,0.00019798,2]
[359027412,1745659842848,-800.31,0.00019798,2]
[359027414,1745659842860,-500.0,0.00019798,2]
[359027416,1745659842872,-500.0,0.00019798,2]
[359027418,1745659842883,-500.0,0.00019798,2]
[359027421,1745659842895,-500.0,0.00019798,2]
[359027423,1745659842908,-577.89,0.00019798,2]
[359027425,1745659842920,-500.0,0.00019798,2]
[359027427,1745659842932,-500.0,0.00019798,2]
[359027430,1745659842944,-500.0,0.00019798,2]
[359027432,1745659842957,-500.0,0.00019798,2]
[359027434,1745659842968,-844.12,0.00019798,2]
[359027436,1745659842981,-500.0,0.00019798,2]
[359027457,1745659843508,-1212.83,0.00019798,2]
[359027458,1745659843538,-500.0,0.00019798,2]
[359027459,1745659843554,-555.25,0.00019798,2]
[359027460,1745659843564,-522.4588718,0.00019798,2]
[359027461,1745659843573,-500.0,0.00019798,2]
[359027462,1745659843583,-500.0,0.00019798,2]
[359027463,1745659843593,-663.03,0.00019798,2]
[359027464,1745659843603,-500.0,0.00019798,2]
[359027465,1745659843612,-500.0,0.00019798,2]
[359027466,1745659843622,-500.0,0.00019798,2]
[359027468,1745659843632,-603.5320357,0.00019798,2]
[359027470,1745659843642,-500.0,0.00019798,2]
[359027472,1745659843651,-500.0,0.00019798,2]
[359027474,1745659843660,-655.43,0.00019798,2]
[359027476,1745659843671,-500.0,0.00019798,2]
[359027478,1745659843680,-500.0,0.00019798,2]
[359027480,1745659843690,-500.0,0.00019798,2]
[359027481,1745659843700,-500.0,0.00019798,2]
[359027482,1745659843710,-726.82,0.00019798,2]
[359027483,1745659843720,-835.82,0.00019798,2]
[359027484,1745659843729,-700.36,0.00019798,2]
[359027485,1745659843740,-500.0,0.00019798,2]
[359027486,1745659843750,-1906.27,0.00019798,2]
[359027487,1745659843760,-500.0,0.00019798,2]
[359027488,1745659843770,-500.0,0.00019798,2]
[359027489,1745659843780,-500.0,0.00019798,2]
[359027490,1745659843789,-500.0,0.00019798,2]
[359027491,1745659843799,-500.0,0.00019798,2]
[359027492,1745659843809,-500.0,0.00019798,2]
[359027493,1745659843818,-500.0,0.00019798,2]
[359027494,1745659843828,-500.0,0.00019798,2]
[359027495,1745659843838,-500.0,0.00019798,2]
[359027496,1745659843848,-500.0,0.00019798,2]
[359027497,1745659843857,-500.0,0.00019798,2]
[359027498,1745659843867,-2104.4,0.00019798,2]
[359027499,1745659843877,-500.0,0.00019798,2]
[359027500,1745659843887,-689.26,0.00019798,2]
[359027501,1745659843896,-500.0,0.00019798,2]
[359027502,1745659843906,-500.0,0.00019798,2]
[359027503,1745659843915,-620.66,0.00019798,2]
[359027504,1745659843925,-500.0,0.00019798,2]
[359027505,1745659843935,-500.0,0.00019798,2]
[359027506,1745659843945,-500.0,0.00019798,2]
[359027507,1745659843954,-500.0,0.00019798,2]
[359027508,1745659843964,-500.0,0.00019798,2]
[359027509,1745659843974,-500.0,0.00019798,2]
[359027510,1745659843983,-500.0,0.00019798,2]
[359027511,1745659843993,-991.35,0.00019798,2]
[359027512,1745659844006,-624.49,0.00019798,2]
[359027513,1745659844015,-500.0,0.00019798,2]
[359027514,1745659844025,-995.06,0.00019798,2]
[359027515,1745659844035,-500.0,0.00019798,2]
[359027516,1745659844046,-500.0,0.00019798,2]
[359027517,1745659844056,-600.05,0.00019798,2]
[359027518,1745659844065,-514.00705452,0.00019798,2]
[359027519,1745659844075,-2404.62,0.00019798,2]
[359027520,1745659844086,-500.0,0.00019798,2]
[359027521,1745659844096,-500.0,0.00019798,2]
[359027522,1745659844106,-805.75,0.00019798,2]
[359027523,1745659844116,-500.0,0.00019798,2]
[359027524,1745659844126,-500.0,0.00019798,2]
[359027525,1745659844135,-500.0,0.00019798,2]
[359027526,1745659844145,-812.35,0.00019798,2]
[359027527,1745659844155,-908.96,0.00019798,2]